fUST/lending_fUST_20250219
["ID","MTS","AMOUNT","RATE_DAILY","PERIOD"]
[353556501,1739913034795,-151.79141476,0.00013773,2]
[353556502,1739913034805,-501.01531438,0.00013773,2]
[353556503,1739913034814,-500.0,0.00013773,2]
[353556504,1739913034823,-478.11359212,0.00013773,2]
[353556505,1739913034832,-168.39433235,0.00013773,2]
[353556506,1739913034841,-2587.96,0.00013778,2]
[353556507,1739913034851,-568.30179641,0.00013779,2]
[353556508,1739913034860,-2587.96,0.00013779,2]
[353556509,1739913034870,-2587.96,0.00013779,2]
[353556510,1739913034879,-2587.96,0.00013779,2]
[353556511,1739913034890,-2587.96,0.00013779,2]
[353556512,1739913034899,-2588.10562207,0.00013779,2]
[353556513,1739913034908,-480.61972094,0.0001378,2]
[353556514,1739913034917,-500.0,0.0001378,2]
[353556515,1739913034927,-500.0,0.0001378,2]
[353556516,1739913034936,-500.0,0.0001378,2]
[353556517,1739913034945,-500.0,0.0001378,2]
[353556518,1739913034954,-500.0,0.0001378,2]
[353556519,1739913034964,-500.0,0.0001378,2]
[353556520,1739913034973,-500.0,0.0001378,2]
[353556521,1739913034982,-526.22179878,0.0001378,2]
[353556522,1739913034991,-500.0,0.0001378,2]
[353556523,1739913035001,-620.27,0.0001378,2]
[353556524,1739913035010,-500.0,0.0001378,2]
[353556525,1739913035019,-561.5498096,0.0001378,2]
[353556526,1739913035028,-500.0,0.0001378,2]
[353556527,1739913035038,-500.0,0.0001378,2]
[353556528,1739913035047,-500.0,0.0001378,2]
[353556529,1739913035056,-500.0,0.0001378,2]
[353556530,1739913035066,-500.0,0.0001378,2]
[353556531,1739913035075,-500.0,0.0001378,2]
[353556532,1739913035084,-170.10630595,0.0001378,2]
[353556533,1739913035094,-500.0,0.0001378,2]
[353556534,1739913035103,-500.0,0.0001378,2]
[353556535,1739913035113,-500.0,0.0001378,2]
[353556536,1739913035122,-500.0,0.0001378,2]
[353556537,1739913035132,-500.0,0.0001378,2]
[353556538,1739913035144,-500.0,0.0001378,2]
[353556539,1739913035155,-500.0,0.0001378,2]
[353556540,1739913035164,-500.0,0.0001378,2]
[353556541,1739913035175,-510.97387032,0.0001378,2]
[353556542,1739913035184,-500.0,0.0001378,2]
[353556543,1739913035193,-500.0,0.0001378,2]
[353556544,1739913035203,-500.0,0.0001378,2]
[353556545,1739913035212,-500.0,0.0001378,2]
[353556546,1739913035221,-381.69804147,0.0001378,2]
[353556547,1739913035230,-574.01,0.0001378,2]
[353556548,1739913035239,-500.0,0.0001378,2]
[353556549,1739913035249,-500.0,0.0001378,2]
[353556550,1739913035258,-500.0,0.0001378,2]
[353556551,1739913035268,-500.0,0.0001378,2]
[353556552,1739913035277,-612.95,0.0001378,2]
[353556553,1739913035286,-500.0,0.0001378,2]
[353556554,1739913035295,-500.0,0.0001378,2]
[353556555,1739913035305,-500.0,0.0001378,2]
[353556556,1739913035314,-500.0,0.0001378,2]
[353556557,1739913035324,-500.0,0.0001378,2]
[353556558,1739913035333,-500.0,0.0001378,2]
[353556559,1739913035342,-500.0,0.0001378,2]
[353556560,1739913035353,-500.0,0.0001378,2]
[353556561,1739913035362,-500.0,0.0001378,2]
[353556562,1739913035371,-500.0,0.0001378,2]
[353556563,1739913035381,-500.0,0.0001378,2]
[353556564,1739913035393,-500.0,0.0001378,2]
[353556565,1739913035403,-501.14899077,0.0001378,2]
[353556566,1739913035412,-500.0,0.0001378,2]
[353556567,1739913035422,-500.0,0.0001378,2]
[353556568,1739913035432,-501.07551732,0.0001378,2]
[353556569,1739913035441,-500.0,0.0001378,2]
[353556570,1739913035451,-500.0,0.0001378,2]
[353556571,1739913035461,-500.0,0.0001378,2]
[353556572,1739913035471,-500.0,0.0001378,2]
[353556573,1739913035479,-500.0,0.0001378,2]
[353556574,1739913035489,-500.0,0.0001378,2]
[353556575,1739913035498,-524.42,0.0001378,2]
[353556576,1739913035507,-500.0,0.0001378,2]
[353556577,1739913035517,-500.0,0.0001378,2]
[353556578,1739913035527,-500.0,0.0001378,2]
[353556579,1739913035536,-500.0,0.0001378,2]
[353556580,1739913035545,-507.03250244,0.0001378,2]
[353556581,1739913035555,-500.0,0.0001378,2]
[353556582,1739913035567,-500.0,0.0001378,2]
[353556583,1739913035578,-500.0,0.0001378,2]
[353556584,1739913035587,-500.48170505,0.0001378,2]
[353556585,1739913035597,-500.0,0.0001378,2]
[353556586,1739913035607,-500.0,0.0001378,2]
[353556587,1739913035616,-500.0,0.0001378,2]
[353556588,1739913035626,-443.29693061,0.0001378,2]
[353556589,1739913035637,-260.44724227,0.0001378,2]
[353556590,1739913035647,-500.0,0.0001378,2]
[353556591,1739913035657,-500.0,0.0001378,2]
[353556592,1739913035667,-500.0,0.0001378,2]
[353556593,1739913035677,-500.68158614,0.0001378,2]
[353556594,1739913035686,-500.0,0.0001378,2]
[353556595,1739913035696,-527.62,0.0001378,2]
[353556596,1739913035705,-500.0,0.0001378,2]
[353556597,1739913035715,-500.0,0.0001378,2]
[353556598,1739913035725,-570.80546124,0.0001378,2]
[353556599,1739913035735,-500.0,0.0001378,2]
[353556600,1739913035745,-500.0,0.0001378,2]
[353556601,1739913035755,-500.0,0.0001378,2]
[353556602,1739913035764,-500.0,0.0001378,2]
[353556603,1739913035774,-500.0,0.0001378,2]
[353556604,1739913035783,-500.0,0.0001378,2]
[353556605,1739913035793,-500.0,0.0001378,2]
[353556606,1739913035803,-500.0,0.0001378,2]
[353556607,1739913035812,-500.0,0.0001378,2]
[353556608,1739913035822,-500.0,0.0001378,2]
[353556609,1739913035832,-500.0,0.0001378,2]
[353556610,1739913035842,-500.0,0.0001378,2]
[353556611,1739913035852,-500.0,0.0001378,2]
[353556612,1739913035861,-500.0,0.0001378,2]
[353556613,1739913035871,-500.0,0.0001378,2]
[353556614,1739913035880,-632.28730592,0.0001378,2]
[353556615,1739913035892,-500.0,0.0001378,2]
[353556616,1739913035902,-500.0,0.0001378,2]
[353556617,1739913035912,-500.0,0.0001378,2]
[353556618,1739913035921,-500.0,0.0001378,2]
[353556619,1739913035931,-500.0,0.0001378,2]
[353556620,1739913035940,-500.0,0.0001378,2]
[353556621,1739913035950,-500.0,0.0001378,2]
[353556622,1739913035959,-500.0,0.0001378,2]
[353556623,1739913035969,-500.0,0.0001378,2]
[353556624,1739913035979,-500.0,0.0001378,2]
[353556625,1739913035989,-500.0,0.0001378,2]
[353556626,1739913035998,-500.0,0.0001378,2]
[353556627,1739913036007,-500.0,0.0001378,2]
[353556628,1739913036016,-1180.08,0.0001378,2]
[353556629,1739913036026,-501.71054458,0.0001378,2]
[353556630,1739913036035,-500.0,0.0001378,2]
[353556631,1739913036045,-500.0,0.0001378,2]
[353556632,1739913036054,-500.0,0.0001378,2]
[353556633,1739913036064,-500.0,0.0001378,2]
[353556634,1739913036074,-1207.85,0.0001378,2]
[353556635,1739913036083,-500.0,0.0001378,2]
[353556636,1739913036093,-1450.98,0.0001378,2]
[353556637,1739913036103,-500.0,0.0001378,2]
[353556638,1739913036113,-500.0,0.0001378,2]
[353556639,1739913036122,-500.0,0.0001378,2]
[353556640,1739913036132,-597.44,0.0001378,2]
[353556641,1739913036145,-500.0,0.0001378,2]
[353556642,1739913036155,-887.73,0.0001378,2]
[353556643,1739913036165,-500.0,0.0001378,2]
[353556644,1739913036175,-527.26,0.0001378,2]
[353556645,1739913036184,-500.0,0.0001378,2]
[353556646,1739913036194,-500.0,0.0001378,2]
[353556647,1739913036204,-500.0,0.0001378,2]
[353556648,1739913036213,-6214.62,0.0001378,2]
[353556649,1739913036224,-500.0,0.0001378,2]
[353556650,1739913036233,-500.0,0.0001378,2]
[353556651,1739913036244,-1003.48,0.0001378,2]
[353556652,1739913036254,-1432.18,0.0001378,2]
[353556653,1739913036264,-500.0,0.0001378,2]
[353556654,1739913036273,-500.0,0.0001378,2]
[353556655,1739913036283,-500.0,0.0001378,2]
[353556656,1739913036292,-9755.02,0.0001378,2]
[353556657,1739913036302,-935.45,0.0001378,2]
[353556658,1739913036311,-500.0,0.0001378,2]
[353556659,1739913036321,-500.0,0.0001378,2]
[353556660,1739913036330,-500.0,0.0001378,2]
[353556661,1739913036340,-500.0,0.0001378,2]
[353556662,1739913036350,-2252.38,0.0001378,2]
[353556663,1739913036360,-500.0,0.0001378,2]
[353556664,1739913036370,-3699.04,0.0001378,2]
[353556665,1739913036380,-859.15,0.0001378,2]
[353556666,1739913036392,-584.16711782,0.0001378,2]
[353556667,1739913036402,-500.0,0.0001378,2]
[353556668,1739913036412,-500.0,0.0001378,2]
[353556669,1739913036421,-4133.22,0.0001378,2]
[353556670,1739913036431,-500.0,0.0001378,2]
[353556671,1739913036440,-500.0,0.0001378,2]
[353556672,1739913036450,-500.0,0.0001378,2]
[353556673,1739913036460,-500.0,0.0001378,2]
[353556674,1739913036469,-500.0,0.0001378,2]
[353556675,1739913036479,-2045.97,0.0001378,2]
[353556676,1739913036489,-500.0,0.0001378,2]
[353556677,1739913036499,-500.0,0.0001378,2]
[353556678,1739913036509,-500.0,0.0001378,2]
[353556679,1739913036518,-500.0,0.0001378,2]
[353556680,1739913036528,-500.0,0.0001378,2]
[353556681,1739913036538,-500.0,0.0001378,2]
[353556682,1739913036548,-500.0,0.0001378,2]
[353556683,1739913036559,-2127.43,0.0001378,2]
[353556684,1739913036572,-500.0,0.0001378,2]
[353556685,1739913036582,-500.0,0.0001378,2]
[353556686,1739913036592,-2110.38,0.0001378,2]
[353556687,1739913036601,-500.0,0.0001378,2]
[353556688,1739913036612,-314.98050377,0.0001378,2]
[353556689,1739913036622,-1032.22,0.0001378,2]
[353556690,1739913036631,-607.07,0.0001378,2]
[353556691,1739913036646,-225.43706974,0.0001378,2]
[353556692,1739913036656,-500.0,0.0001378,2]
[353556693,1739913036665,-6994.62,0.0001378,2]
[353556694,1739913036675,-500.0,0.0001378,2]
[353556695,1739913036684,-500.0,0.0001378,2]
[353556696,1739913036694,-621.38,0.0001378,2]
[353556697,1739913036703,-232.75867246,0.0001378,2]
[353556698,1739913036713,-1017.9,0.0001378,2]
[353556699,1739913036722,-500.0,0.0001378,2]
[353556700,1739913036732,-806.97,0.0001378,2]
[353556701,1739913036741,-500.0,0.0001378,2]
[353556702,1739913036751,-1226.33,0.0001378,2]
[353556703,1739913036760,-646.79,0.0001378,2]
[353556704,1739913036770,-500.0,0.0001378,2]
[353556705,1739913036779,-1006.39,0.0001378,2]
[353556706,1739913036789,-502.33790019,0.0001378,2]
[353556707,1739913036799,-500.0,0.0001378,2]
[353556708,1739913036808,-523.58,0.0001378,2]
[353556709,1739913036818,-500.0,0.0001378,2]
[353556710,1739913036827,-500.0,0.0001378,2]
[353556711,1739913036836,-500.0,0.0001378,2]
[353556712,1739913036846,-500.0,0.0001378,2]
[353556713,1739913036856,-500.0,0.0001378,2]
[353556714,1739913036866,-500.0,0.0001378,2]
[353556715,1739913036876,-500.0,0.0001378,2]
[353556716,1739913036886,-692.32,0.0001378,2]
[353556717,1739913036896,-500.0,0.0001378,2]
[353556718,1739913036905,-500.0,0.0001378,2]
[353556719,1739913036915,-913.5,0.0001378,2]
[353556720,1739913036924,-500.0,0.0001378,2]
[353556721,1739913036933,-500.0,0.0001378,2]
[353556722,1739913036943,-500.0,0.0001378,2]
[353556723,1739913036952,-500.0,0.0001378,2]
[353556724,1739913036962,-2933.55,0.0001378,2]
[353556725,1739913036972,-500.0,0.0001378,2]
[353556726,1739913036982,-500.0,0.0001378,2]
[353556727,1739913036992,-500.0,0.0001378,2]
[353556728,1739913037002,-500.0,0.0001378,2]
[353556729,1739913037011,-435.8689266,0.000138,2]
[353556730,1739913037021,-500.0,0.00013863,2]
[353556731,1739913037031,-327.69,0.00013863,2]
[353556732,1739913037042,-500.0,0.00013863,2]
[353556733,1739913037052,-500.0,0.00013863,2]
[353556734,1739913037062,-500.0,0.00013863,2]
[353556735,1739913037072,-620.27,0.00013863,2]
[353556736,1739913037081,-500.0,0.00013863,2]
[353556737,1739913037091,-500.0,0.00013863,2]
[353556738,1739913037101,-500.0,0.00013863,2]
[353556739,1739913037111,-500.0,0.00013863,2]
[353556740,1739913037120,-500.0,0.00013863,2]
[353556741,1739913037130,-574.01,0.00013863,2]
[353556742,1739913037142,-500.0,0.00013863,2]
[353556743,1739913037152,-500.0,0.00013863,2]
[353556744,1739913037161,-612.95,0.00013863,2]
[353556745,1739913037171,-500.0,0.00013863,2]
[353556746,1739913037181,-237.32,0.00013863,2]
[353556747,1739913037191,-500.0,0.00013863,2]
[353556748,1739913037200,-500.0,0.00013863,2]
[353556749,1739913037210,-500.0,0.00013863,2]
[353556750,1739913037219,-524.42,0.00013863,2]
[353556751,1739913037229,-500.0,0.00013863,2]
[353556752,1739913037238,-500.0,0.00013863,2]
[353556753,1739913037248,-500.0,0.00013863,2]
[353556754,1739913037258,-500.0,0.00013863,2]
[353556755,1739913037267,-500.0,0.00013863,2]
[353556756,1739913037278,-500.0,0.00013863,2]
[353556757,1739913037288,-500.0,0.00013863,2]
[353556758,1739913037298,-500.0,0.00013863,2]
[353556759,1739913037308,-500.0,0.00013863,2]
[353556760,1739913037415,-500.0,0.00013863,2]
[353556761,1739913037425,-500.0,0.00013863,2]
[353556762,1739913037435,-1180.08,0.00013863,2]
[353556763,1739913037445,-500.0,0.00013863,2]
[353556764,1739913037455,-500.0,0.00013863,2]
[353556765,1739913037465,-1207.85,0.00013863,2]
[353556766,1739913037475,-500.0,0.00013863,2]
[353556767,1739913037484,-1450.98,0.00013863,2]
[353556768,1739913037494,-500.0,0.00013863,2]
[353556769,1739913037503,-597.44,0.00013863,2]
[353556770,1739913037514,-887.73,0.00013863,2]
[353556771,1739913037523,-500.0,0.00013863,2]
[353556772,1739913037533,-527.26,0.00013863,2]
[353556773,1739913037542,-500.0,0.00013863,2]
[353556774,1739913037553,-6214.62,0.00013863,2]
[353556775,1739913037564,-500.0,0.00013863,2]
[353556776,1739913037574,-1003.48,0.00013863,2]
[353556777,1739913037584,-1432.18,0.00013863,2]
[353556778,1739913037593,-500.0,0.00013863,2]
[353556779,1739913037603,-500.0,0.00013863,2]
[353556780,1739913037614,-500.0,0.00013863,2]
[353556781,1739913037623,-9755.02,0.00013863,2]
[353556782,1739913037634,-935.45,0.00013863,2]
[353556783,1739913037647,-500.0,0.00013863,2]
[353556784,1739913037657,-500.0,0.00013863,2]
[353556785,1739913037666,-500.0,0.00013863,2]
[353556786,1739913037676,-2252.38,0.00013863,2]
[353556787,1739913037685,-301.21532777,0.00013863,2]
[353556788,1739913037695,-3699.04,0.00013863,2]
[353556789,1739913037704,-859.15,0.00013863,2]
[353556790,1739913037714,-500.0,0.00013863,2]
[353556791,1739913037723,-500.0,0.00013863,2]
[353556792,1739913037733,-4133.22,0.00013863,2]
[353556793,1739913037743,-500.0,0.00013863,2]
[353556794,1739913037752,-500.0,0.00013863,2]
[353556795,1739913037761,-500.0,0.00013863,2]
[353556796,1739913037771,-500.0,0.00013863,2]
[353556797,1739913037781,-500.0,0.00013863,2]
[353556798,1739913037791,-2045.97,0.00013863,2]
[353556799,1739913037800,-500.0,0.00013863,2]
[353556800,1739913037809,-500.0,0.00013863,2]
[353556801,1739913037819,-500.0,0.00013863,2]
[353556802,1739913037828,-500.0,0.00013863,2]
[353556803,1739913037837,-500.0,0.00013863,2]
[353556804,1739913037847,-2127.43,0.00013863,2]
[353556805,1739913037856,-500.0,0.00013863,2]
[353556806,1739913037866,-2110.38,0.00013863,2]
[353556807,1739913037875,-500.0,0.00013863,2]
[353556808,1739913037885,-1032.22,0.00013863,2]
[353556809,1739913037897,-607.07,0.00013863,2]
[353556811,1739913037907,-500.0,0.00013863,2]
[353556813,1739913037916,-6994.62,0.00013863,2]
[353556814,1739913037926,-500.0,0.00013863,2]
[353556816,1739913037936,-621.38,0.00013863,2]
[353556819,1739913037949,-1017.9,0.00013863,2]
[353556821,1739913037958,-500.0,0.00013863,2]
[353556822,1739913037967,-806.97,0.00013863,2]
[353556824,1739913037976,-500.0,0.00013863,2]
[353556826,1739913037986,-1226.33,0.00013863,2]
[353556828,1739913037996,-646.79,0.00013863,2]
[353556831,1739913038005,-1006.39,0.00013863,2]
[353556833,1739913038015,-500.0,0.00013863,2]
[353556836,1739913038024,-523.58,0.00013863,2]
[353556838,1739913038034,-500.0,0.00013863,2]
[353556840,1739913038043,-500.0,0.00013863,2]
[353556842,1739913038052,-500.0,0.00013863,2]
[353556843,1739913038062,-500.0,0.00013863,2]
[353556845,1739913038071,-500.0,0.00013863,2]
[353556846,1739913038081,-692.32,0.00013863,2]
[353556847,1739913038090,-500.0,0.00013863,2]
[353556848,1739913038099,-913.5,0.00013863,2]
[353556850,1739913038124,-500.0,0.00013863,2]
[353556852,1739913038134,-500.0,0.00013863,2]
[353556854,1739913038147,-500.0,0.00013863,2]
[353556855,1739913038157,-2933.55,0.00013863,2]
[353556856,1739913038166,-500.0,0.00013863,2]
[353556857,1739913038176,-500.0,0.00013863,2]
[353556858,1739913038185,-200.63374824,0.00013863,2]
[353556859,1739913038195,-500.0,0.00013863,2]
[353556860,1739913038205,-500.0,0.00013945,2]
[353556861,1739913038215,-500.0,0.00013945,2]
[353556862,1739913038225,-620.27,0.00013945,2]
[353556863,1739913038234,-417.65,0.00013945,2]
[353556865,1739913038243,-500.0,0.00013945,2]
[353556866,1739913038253,-500.0,0.00013945,2]
[353556867,1739913038263,-500.0,0.00013945,2]
[353556868,1739913038273,-500.0,0.00013945,2]
[353556869,1739913038282,-574.01,0.00013945,2]
[353556870,1739913038292,-500.0,0.00013945,2]
[353556871,1739913038302,-612.95,0.00013945,2]
[353556872,1739913038311,-337.56422508,0.00013945,2]
[353556873,1739913038321,-500.0,0.00013945,2]
[353556874,1739913038331,-500.0,0.00013945,2]
[353556875,1739913038341,-524.42,0.00013945,2]
[353556876,1739913038351,-500.0,0.00013945,2]
[353556877,1739913038361,-500.0,0.00013945,2]
[353556878,1739913038371,-162.28,0.00013945,2]
[353556879,1739913038380,-500.0,0.00013945,2]
[353556880,1739913038392,-500.0,0.00013945,2]
[353556881,1739913038402,-500.0,0.00013945,2]
[353556882,1739913038412,-500.0,0.00013945,2]
[353556883,1739913038421,-500.0,0.00013945,2]
[353556884,1739913038432,-500.0,0.00013945,2]
[353556885,1739913038441,-500.0,0.00013945,2]
[353556886,1739913038451,-1180.08,0.00013945,2]
[353556887,1739913038461,-484.26027064,0.00013945,2]
[353556888,1739913038471,-500.0,0.00013945,2]
[353556889,1739913038481,-1207.85,0.00013945,2]
[353556890,1739913038491,-500.0,0.00013945,2]
[353556891,1739913038501,-1450.98,0.00013945,2]
[353556892,1739913038510,-597.44,0.00013945,2]
[353556893,1739913038520,-887.73,0.00013945,2]
[353556894,1739913038530,-500.0,0.00013945,2]
[353556895,1739913038540,-527.26,0.00013945,2]
[353556896,1739913038550,-500.0,0.00013945,2]
[353556897,1739913038561,-6214.62,0.00013945,2]
[353556898,1739913038574,-500.0,0.00013945,2]
[353556899,1739913038584,-1003.48,0.00013945,2]
[353556900,1739913038593,-1432.18,0.00013945,2]
[353556901,1739913038603,-500.0,0.00013945,2]
[353556902,1739913038613,-500.0,0.00013945,2]
[353556903,1739913038623,-500.0,0.00013945,2]
[353556904,1739913038632,-9755.02,0.00013945,2]
[353556905,1739913038647,-935.45,0.00013945,2]
[353556906,1739913038657,-500.0,0.00013945,2]
[353556907,1739913038666,-500.0,0.00013945,2]
[353556909,1739913038676,-2252.38,0.00013945,2]
[353556911,1739913038685,-3699.04,0.00013945,2]
[353556912,1739913038695,-859.15,0.00013945,2]
[353556914,1739913038705,-500.0,0.00013945,2]
[353556916,1739913038715,-440.27,0.00013945,2]
[353556917,1739913038724,-4133.22,0.00013945,2]
[353556918,1739913038734,-500.0,0.00013945,2]
[353556919,1739913038744,-500.0,0.00013945,2]
[353556920,1739913038754,-500.0,0.00013945,2]
[353556921,1739913038764,-500.0,0.00013945,2]
[353556922,1739913038773,-197.58,0.00013945,2]
[353556923,1739913038782,-2045.97,0.00013945,2]
[353556924,1739913038792,-500.0,0.00013945,2]
[353556925,1739913038801,-500.0,0.00013945,2]
[353556926,1739913038811,-500.0,0.00013945,2]
[353556927,1739913038821,-500.0,0.00013945,2]
[353556928,1739913038831,-2127.43,0.00013945,2]
[353556929,1739913038841,-500.0,0.00013945,2]
[353556930,1739913038851,-2110.38,0.00013945,2]
[353556931,1739913038861,-500.0,0.00013945,2]
[353556932,1739913038871,-1032.22,0.00013945,2]
[353556933,1739913038881,-607.07,0.00013945,2]
[353556934,1739913038893,-500.0,0.00013945,2]
[353556935,1739913038903,-6994.62,0.00013945,2]
[353556936,1739913038912,-500.0,0.00013945,2]
[353556937,1739913038921,-621.38,0.00013945,2]
[353556938,1739913038931,-1017.9,0.00013945,2]
[353556939,1739913038940,-500.0,0.00013945,2]
[353556940,1739913038950,-806.97,0.00013945,2]
[353556941,1739913038959,-1226.33,0.00013945,2]
[353556942,1739913038969,-500.0,0.00013945,2]
[353556943,1739913038979,-646.79,0.00013945,2]
[353556944,1739913038988,-1006.39,0.00013945,2]
[353556945,1739913038998,-446.70941758,0.00013945,2]
[353556946,1739913039007,-523.58,0.00013945,2]
[353556947,1739913039017,-500.0,0.00013945,2]
[353556948,1739913039026,-500.0,0.00013945,2]
[353556949,1739913039035,-506.17,0.00013945,2]
[353556950,1739913039045,-692.32,0.00013945,2]
[353556951,1739913039054,-500.0,0.00013945,2]
[353556952,1739913039064,-913.5,0.00013945,2]
[353556953,1739913039073,-500.0,0.00013945,2]
[353556954,1739913039083,-500.0,0.00013945,2]
[353556955,1739913039093,-2933.55,0.00013945,2]
[353556956,1739913039102,-500.0,0.00013945,2]
[353556957,1739913039111,-500.0,0.00013945,2]
[353556958,1739913039121,-500.0,0.00013945,2]
[353556959,1739913039131,-152.0,0.00013985,2]
[353556960,1739913039142,-669.33383376,0.00013992,2]
[353556961,1739913039151,-669.33383376,0.00013992,2]
[353556962,1739913039160,-669.33383376,0.00013993,2]
[353556963,1739913039169,-500.0,0.00014027,2]
[353556964,1739913039179,-620.27,0.00014027,2]
[353556965,1739913039188,-500.0,0.00014027,2]
[353556966,1739913039198,-500.0,0.00014027,2]
[353556967,1739913039208,-500.0,0.00014027,2]
[353556968,1739913039218,-500.0,0.00014027,2]
[353556969,1739913039227,-574.01,0.00014027,2]
[353556970,1739913039237,-500.0,0.00014027,2]
[353556971,1739913039246,-612.95,0.00014027,2]
[353556972,1739913039255,-500.0,0.00014027,2]
[353556973,1739913039265,-500.0,0.00014027,2]
[353556974,1739913039275,-524.42,0.00014027,2]
[353556975,1739913039285,-500.0,0.00014027,2]
[353556976,1739913039295,-500.0,0.00014027,2]
[353556977,1739913039304,-500.0,0.00014027,2]
[353556978,1739913039314,-500.0,0.00014027,2]
[353556979,1739913039323,-500.0,0.00014027,2]
[353556980,1739913039333,-500.0,0.00014027,2]
[353556981,1739913039343,-500.0,0.00014027,2]
[353556982,1739913039351,-641.28604524,0.00014027,2]
[353556983,1739913039361,-500.0,0.00014027,2]
[353556984,1739913039371,-1180.08,0.00014027,2]
[353556985,1739913039380,-500.0,0.00014027,2]
[353556986,1739913039393,-1207.85,0.00014027,2]
[353556987,1739913039402,-500.0,0.00014027,2]
[353556988,1739913039412,-1450.98,0.00014027,2]
[353556989,1739913039422,-597.44,0.00014027,2]
[353556990,1739913039431,-887.73,0.00014027,2]
[353556991,1739913039440,-500.0,0.00014027,2]
[353556992,1739913039450,-527.26,0.00014027,2]
[353556993,1739913039459,-500.0,0.00014027,2]
[353556994,1739913039468,-6214.62,0.00014027,2]
[353556995,1739913039478,-500.0,0.00014027,2]
[353556996,1739913039487,-1003.48,0.00014027,2]
[353556997,1739913039496,-1432.18,0.00014027,2]
[353556998,1739913039506,-500.0,0.00014027,2]
[353556999,1739913039516,-500.0,0.00014027,2]
[353557000,1739913039527,-500.0,0.00014027,2]
[353557001,1739913039537,-9755.02,0.00014027,2]
[353557002,1739913039546,-935.45,0.00014027,2]
[353557003,1739913039558,-500.0,0.00014027,2]
[353557004,1739913039569,-2252.38,0.00014027,2]
[353557005,1739913039578,-3699.04,0.00014027,2]
[353557006,1739913039587,-859.15,0.00014027,2]
[353557007,1739913039597,-500.0,0.00014027,2]
[353557008,1739913039606,-4133.22,0.00014027,2]
[353557009,1739913039615,-500.0,0.00014027,2]
[353557010,1739913039624,-500.0,0.00014027,2]
[353557011,1739913039633,-500.0,0.00014027,2]
[353557012,1739913039647,-500.0,0.00014027,2]
[353557013,1739913039656,-2045.97,0.00014027,2]
[353557014,1739913039666,-500.0,0.00014027,2]
[353557015,1739913039675,-500.0,0.00014027,2]
[353557016,1739913039684,-500.0,0.00014027,2]
[353557017,1739913039694,-500.0,0.00014027,2]
[353557018,1739913039703,-2127.43,0.00014027,2]
[353557019,1739913039712,-500.0,0.00014027,2]
[353557020,1739913039721,-2110.38,0.00014027,2]
[353557021,1739913039730,-500.0,0.00014027,2]
[353557022,1739913039739,-1032.22,0.00014027,2]
[353557023,1739913039749,-607.07,0.00014027,2]
[353557024,1739913039758,-500.0,0.00014027,2]
[353557025,1739913039768,-500.0,0.00014027,2]
[353557026,1739913039777,-6994.62,0.00014027,2]